[Event "5th Thessaloniki SKG Open-B 2024"]
[Site "Thessaloniki"]
[Date "2024.08.06"]
[Round "1.1"]
[White "Samakas, Anastasios"]
[Black "Giakoustidou, Evgenia"]
[Result "1-0"]
[ECO "B20"]
[WhiteElo "2000"]
[BlackElo "1629"]
[Annotator "NA RC"]
[PlyCount "61"]
[EventDate "2024.08.05"]
[EventType "swiss"]
[EventCountry "GRE"]
[SourceTitle "playchess.com"]
[Source "ChessBase"]
[SourceQuality "1"]
[TimeControl "40/5400+30:1800+30"]

1. e4 {[%emt 0:00:08]} c5 {[%emt 0:00:04]} 2. b3 {[%emt 0:00:04]} d6 {[%emt 0:00:17]} 3. Bb2 {[%emt 0:00:04]} e5 {[%emt 0:00:08]} 4. Bb5+ {[%emt 0:00:08]} Nc6 {[%emt 0:00:29]} 5. Bxc6+ {[%emt 0:00:09]} bxc6 {[%emt 0:00:05]} 6. Ne2 {[%emt 0:00:07]} Nf6 {[%emt 0:00:07]} 7. d3 {[%emt 0:00:04]} Be7 {[%emt 0:00:53]} 8. O-O {[%emt 0:00:12]} O-O {[%emt 0:00:19]} 9. Nd2 {[%emt 0:00:17]} Qc7 {[%emt 0:00:07]} 10. Qe1 {[%emt 0:00:12]} Nd7 {[%emt 0:01:21]} 11. f4 {[%emt 0:01:02]} exf4 {[%emt 0:00:14]} 12. Nxf4 {[%emt 0:00:19]} Bf6 {[%emt 0:00:05]} 13. c3 {[%emt 0:02:01]} g6 {[%emt 0:13:53]} 14. Qg3 {[%emt 0:01:19]} Bg7 {[%emt 0:00:19]} 15. Kh1 {[%emt 0:01:01]} a5 {[%emt 0:01:22]} 16. Nc4 {[%emt 0:03:43]} Nb6 {[%emt 0:12:15]} 17. Ne3 {[%emt 0:01:20]} a4 {[%emt 0:03:14]} 18. Rae1 {[%emt 0:03:06]} axb3 {[%emt 0:01:13]} 19. axb3 {[%emt 0:00:01]} Rb8 {[%emt 0:14:25]} 20. Ba1 {[%emt 0:04:11]} Bd7 {[%emt 0:05:46]} 21. Nf5 {[%emt 0:01:27]} Bxf5 {[%emt 0:02:01]} 22. exf5 {[%emt 0:00:06]} Nd5 {[%emt 0:06:26]} 23. Nh5 {[%emt 0:02:09]} gxh5 {[%emt 0:03:44]} 24. f6 {[%emt 0:00:40]} Nxf6 {[%emt 0:00:03]} 25. Rxf6 {[%emt 0:00:09]} Rbe8 {[%emt 0:01:55]} 26. Ref1 {[%emt 0:00:33]} Re6 {[%emt 0:01:11]} 27. c4 {[%emt 0:00:10]} Qe7 {[%emt 0:01:54]} 28. Qxg7+ {[%emt 0:00:28]} Kxg7 {[%emt 0:00:11]} 29. Rxe6+ {[%emt 0:00:04]} Kg8 {[%emt 0:00:25]} 30. Rxe7 {[%emt 0:00:04]} f5 {[%emt 0:01:09]} 31. Rg7+ {[%emt 0:00:09]} 1-0

[Event "5th Thessaloniki SKG Open-B 2024"]
[Site "Thessaloniki"]
[Date "2024.08.06"]
[Round "1.2"]
[White "Lamprinos, Athanasios Angelos"]
[Black "Danis, Hrisovalantis"]
[Result "1-0"]
[ECO "B89"]
[WhiteElo "1626"]
[BlackElo "1983"]
[Annotator "NA RC"]
[PlyCount "71"]
[EventDate "2024.08.05"]
[EventType "swiss"]
[EventCountry "GRE"]
[SourceTitle "playchess.com"]
[Source "ChessBase"]
[SourceQuality "1"]
[TimeControl "40/5400+30:1800+30"]

1. e4 {[%emt 0:00:03]} c5 {[%emt 0:00:11]} 2. Nf3 {[%emt 0:00:08]} Nc6 {[%emt 0:00:18]} 3. d4 {[%emt 0:00:09]} cxd4 {[%emt 0:00:18]} 4. Nxd4 {[%emt 0:00:01]} Nf6 {[%emt 0:00:30]} 5. Nc3 {[%emt 0:01:01]} d6 {[%emt 0:00:12]} 6. Bc4 {[%emt 0:01:12]} e6 {[%emt 0:00:24]} 7. Be3 {[%emt 0:02:04]} Be7 {[%emt 0:01:47]} 8. f3 {[%emt 0:02:34]} O-O {[%emt 0:01:44]} 9. Qd2 {[%emt 0:00:25]} d5 {[%emt 0:04:35]} 10. exd5 {[%emt 0:03:04]} Nxd5 {[%emt 0:08:51]} 11. Nxd5 {[%emt 0:04:41]} exd5 {[%emt 0:00:09]} 12. Bb3 {[%emt 0:03:32]} Bh4+ {[%emt 0:12:44]} 13. g3 {[%emt 0:11:39]} Bf6 {[%emt 0:01:33]} 14. O-O-O {[%emt 0:01:02]} a5 {[%emt 0:01:25]} 15. Nb5 {[%emt 0:05:06]} a4 {[%emt 0:26:28]} 16. Bxd5 {[%emt 0:01:22]} a3 {[%emt 0:00:24]} 17. Nxa3 {[%emt 0:10:58]} Rxa3 {[%emt 0:07:57]} 18. bxa3 {[%emt 0:02:18]} Qe7 {[%emt 0:00:06]} 19. c3 {[%emt 0:09:07]} Qxa3+ {[%emt 0:19:23]} 20. Qb2 {[%emt 0:00:24]} Qa5 {[%emt 0:00:12]} 21. Bb6 {[%emt 0:06:27]} Qa6 {[%emt 0:01:35]} 22. Bc5 {[%emt 0:13:19]} Re8 {[%emt 0:00:08]} 23. Qb3 {[%emt 0:03:18]} Be6 {[%emt 0:02:54]} 24. Bxe6 {[%emt 0:02:45]} Rxe6 {[%emt 0:00:51]} 25. Qa3 {[%emt 0:01:28]} h5 {[%emt 0:05:17]} 26. Qxa6 {[%emt 0:00:30]} bxa6 {[%emt 0:00:01]} 27. Rd6 {[%emt 0:00:54]} Bxc3 {[%emt 0:00:36]} 28. Rxe6 {[%emt 0:00:25]} fxe6 {[%emt 0:00:01]} 29. Rd1 {[%emt 0:00:36]} a5 {[%emt 0:00:36]} 30. Kc2 {[%emt 0:02:10]} Bf6 {[%emt 0:00:08]} 31. f4 {[%emt 0:03:14]} Kf7 {[%emt 0:01:19]} 32. Kb3 {[%emt 0:02:07]} e5 {[%emt 0:01:00]} 33. Rd6 {[%emt 0:01:48]} Nd4+ {[%emt 0:01:09]} 34. Bxd4 {[%emt 0:00:07]} exd4 {[%emt 0:00:01]} 35. Kc4 {[%emt 0:01:08]} Ke7 {[%emt 0:00:09]} 36. Ra6 {[%emt 0:00:09]} 1-0

[Event "5th Thessaloniki SKG Open-B 2024"]
[Site "Thessaloniki"]
[Date "2024.08.06"]
[Round "1.3"]
[White "Pantoglou, Dimitrios"]
[Black "Alla, Andreas"]
[Result "1-0"]
[ECO "E92"]
[WhiteElo "1893"]
[BlackElo "1623"]
[Annotator "NA RC"]
[PlyCount "145"]
[EventDate "2024.08.05"]
[EventType "swiss"]
[EventCountry "GRE"]
[SourceTitle "playchess.com"]
[Source "ChessBase"]
[SourceQuality "1"]
[TimeControl "40/5400+30:1800+30"]

1. d4 {[%emt 0:00:30]} Nf6 {[%emt 0:00:30]} 2. c4 {[%emt 0:00:30]} g6 {[%emt 0:00:30]} 3. Nc3 {[%emt 0:00:30]} Bg7 {[%emt 0:00:30]} 4. e4 {[%emt 0:00:30]} d6 {[%emt 0:00:30]} 5. Nf3 {[%emt 0:00:30]} O-O {[%emt 0:00:30]} 6. Be2 {[%emt 0:00:30]} e5 {[%emt 0:00:30]} 7. O-O {[%emt 0:00:30]} Nc6 {[%emt 0:00:30]} 8. d5 {[%emt 0:00:30]} Ne7 {[%emt 0:00:30]} 9. Be3 {[%emt 0:00:30]} Ne8 {[%emt 0:00:30]} 10. Nd2 {[%emt 0:00:30]} f5 {[%emt 0:00:30]} 11. f3 {[%emt 0:00:30]} f4 {[%emt 0:00:30]} 12. Bf2 {[%emt 0:00:30]} g5 {[%emt 0:00:30]} 13. Rc1 {[%emt 0:00:30] E92: King's Indian: Classical: 6 Be2 e5: 7 dxe5, 7 Be3 and Petrosian System without 7...Nbd7.} Nf6 {[%emt 0:00:30]} 14. c5 {[%emt 0:00:30]} h5 {[%emt 0:00:30]} 15. cxd6 {[%emt 0:00:30]} cxd6 {[%emt 0:00:30]} 16. Nb5 {[%emt 0:00:30]} b6 {[%emt 0:00:30]} 17. Nc7 {[%emt 0:00:30]} Rb8 {[%emt 0:00:30]} 18. Ba6 {[%emt 0:00:30]} Bxa6 {[%emt 0:00:30]} 19. Nxa6 {[%emt 0:00:30]} Rc8 {[%emt 0:00:30]} 20. Qa4 {[%emt 0:00:30]} Qd7 {[%emt 0:00:30]} 21. Qxd7 {[%emt 0:00:30]} Nxd7 {[%emt 0:00:30]} 22. b4 {[%emt 0:00:30]} Rxc1 {[%emt 0:00:30]} 23. Rxc1 {[%emt 0:00:30]} Rc8 {[%emt 0:00:30]} 24. Rc7 {[%emt 0:00:30]} Rxc7 {[%emt 0:00:30]} 25. Nxc7 {[%emt 0:00:30]} Bf6 {[%emt 0:00:30]} 26. Nc4 {[%emt 0:00:30]} Nc8 {[%emt 0:00:30]} 27. Kf1 {[%emt 0:00:30]} Kf7 {[%emt 0:00:30]} 28. Ke2 {[%emt 0:00:30]} Bd8 {[%emt 0:00:30]} 29. Ne6 {[%emt 0:00:30]} Be7 {[%emt 0:00:30]} 30. Kd3 {[%emt 0:00:30]} Nf8 {[%emt 0:00:30]} 31. Nc7 {[%emt 0:00:30]} Nd7 {[%emt 0:00:30]} 32. Kc3 {[%emt 0:00:30]} Bd8 {[%emt 0:00:30]} 33. Ne6 {[%emt 0:00:30]} Be7 {[%emt 0:00:30]} 34. Kb3 {[%emt 0:00:30]} Nf8 {[%emt 0:00:30]} 35. Nc7 {[%emt 0:00:30]} Bd8 {[%emt 0:00:30]} 36. Na6 {[%emt 0:00:30]} g4 {[%emt 0:00:30]} 37. Ka4 {[%emt 0:00:30]} gxf3 {[%emt 0:00:30]} 38. gxf3 {[%emt 0:00:30]} Ng6 {[%emt 0:00:30]} 39. Kb5 {[%emt 0:00:30]} Bh4 {[%emt 0:00:30]} 40. Bxh4 {[%emt 0:00:30]} Nxh4 {[%emt 0:00:30]} 41. Nd2 {[%emt 0:30:30]} Ne7 {[%emt 0:30:30]} 42. Nb8 {[%emt 0:00:30]} Ke8 {[%emt 0:00:30]} 43. Nc6 {[%emt 0:00:30]} Nc8 {[%emt 0:00:30]} 44. Ka6 {[%emt 0:00:30]} Kd7 {[%emt 0:00:30]} 45. Nxa7 {[%emt 0:00:30]} Nxa7 {[%emt 0:00:30]} 46. Kxa7 {[%emt 0:00:30]} Kc7 {[%emt 0:00:30]} 47. a4 {[%emt 0:00:30]} Ng2 {[%emt 0:00:30]} 48. Ka6 {[%emt 0:00:30]} h4 {[%emt 0:00:30]} 49. a5 {[%emt 0:00:30]} bxa5 {[%emt 0:00:30]} 50. bxa5 {[%emt 0:00:30]} h3 {[%emt 0:00:30]} 51. Kb5 {[%emt 0:00:30]} Ne1 {[%emt 0:00:30]} 52. a6 {[%emt 0:00:30]} Nc2 {[%emt 0:00:30]} 53. a7 {[%emt 0:00:30]} Kb7 {[%emt 0:00:30]} 54. a8=Q+ {[%emt 0:00:30]} Kxa8 {[%emt 0:00:30]} 55. Kc6 {[%emt 0:00:30]} Nb4+ {[%emt 0:00:30]} 56. Kxd6 {[%emt 0:00:30]} Nd3 {[%emt 0:00:30]} 57. Kc7 {[%emt 0:00:30]} Nc5 {[%emt 0:00:30]} 58. d6 {[%emt 0:00:30]} Ne6+ {[%emt 0:00:30]} 59. Kc8 {[%emt 0:00:30]} Ka7 {[%emt 0:00:30]} 60. d7 {[%emt 0:00:30]} Kb6 {[%emt 0:00:30]} 61. Nc4+ {[%emt 0:00:30]} Kc5 {[%emt 0:00:30]} 62. Nxe5 {[%emt 0:00:30]} Kd4 {[%emt 0:00:30]} 63. Ng4 {[%emt 0:00:30]} Kd3 {[%emt 0:00:30]} 64. d8=Q+ {[%emt 0:00:30]} Nxd8 {[%emt 0:00:30]} 65. Kxd8 {[%emt 0:00:30]} Ke2 {[%emt 0:00:30]} 66. e5 {[%emt 0:00:30]} Kxf3 {[%emt 0:00:30]} 67. e6 {[%emt 0:00:30]} Kxg4 {[%emt 0:00:30]} 68. e7 {[%emt 0:00:30]} Kf3 {[%emt 0:00:30]} 69. e8=Q {[%emt 0:00:30]} Kg2 {[%emt 0:00:30]} 70. Qe2+ {[%emt 0:00:30]} Kg1 {[%emt 0:00:30]} 71. Qf3 {[%emt 0:00:30]} Kxh2 {[%emt 0:00:30]} 72. Qf2+ {[%emt 0:00:30]} Kh1 {[%emt 0:00:30]} 73. Kc8 {[%emt 0:00:30]} 1-0

[Event "5th Thessaloniki SKG Open-B 2024"]
[Site "Thessaloniki"]
[Date "2024.08.06"]
[Round "1.4"]
[White "Balaskas, Stefanos"]
[Black "Vakalopoulos, Hristos"]
[Result "0-1"]
[ECO "B23"]
[WhiteElo "1619"]
[BlackElo "1866"]
[Annotator "NA RC"]
[PlyCount "92"]
[EventDate "2024.08.05"]
[EventType "swiss"]
[EventCountry "GRE"]
[SourceTitle "playchess.com"]
[Source "ChessBase"]
[SourceQuality "1"]
[TimeControl "40/5400+30:1800+30"]

1. e4 {[%emt 0:00:04]} c5 {[%emt 0:00:05]} 2. Nc3 {[%emt 0:00:06]} Nc6 {[%emt 0:00:28]} 3. Bb5 {[%emt 0:00:16]} Nd4 {[%emt 0:00:48]} 4. Nf3 {[%emt 0:00:27]} g6 {[%emt 0:02:03]} 5. Nxd4 {[%emt 0:01:23]} cxd4 {[%emt 0:00:07]} 6. Ne2 {[%emt 0:00:32]} Bg7 {[%emt 0:01:04]} 7. c3 {[%emt 0:00:59]} Nf6 {[%emt 0:06:05]} 8. e5 {[%emt 0:02:59]} Nd5 {[%emt 0:03:14]} 9. cxd4 {[%emt 0:00:58]} O-O {[%emt 0:01:54]} 10. O-O {[%emt 0:04:35]} d6 {[%emt 0:00:41]} 11. f4 {[%emt 0:01:49]} Be6 {[%emt 0:16:34]} 12. Kh1 {[%emt 0:06:56]} Qb6 {[%emt 0:04:33]} 13. Ba4 {[%emt 0:07:05]} Rfc8 {[%emt 0:06:18]} 14. Bb3 {[%emt 0:04:55]} a5 {[%emt 0:00:51]} 15. Qe1 {[%emt 0:03:28]} a4 {[%emt 0:16:25]} 16. Bxd5 {[%emt 0:00:48]} Bxd5 {[%emt 0:00:05]} 17. f5 {[%emt 0:08:00]} dxe5 {[%emt 0:03:27]} 18. fxg6 {[%emt 0:00:43]} Qxg6 {[%emt 0:02:05]} 19. Qf2 {[%emt 0:06:03]} Ra6 {[%emt 0:07:03]} 20. Ng3 {[%emt 0:09:11]} Rf6 {[%emt 0:04:20]} 21. Qe2 {[%emt 0:01:52]} Rxf1+ {[%emt 0:04:44]} 22. Qxf1 {[%emt 0:00:10]} exd4 {[%emt 0:00:41]} 23. d3 {[%emt 0:00:46]} Rc2 {[%emt 0:01:34]} 24. Ne4 {[%emt 0:03:07]} Bxe4 {[%emt 0:04:39]} 25. dxe4 {[%emt 0:00:13]} Qxe4 {[%emt 0:00:15]} 26. Bf4 {[%emt 0:00:46]} d3 {[%emt 0:01:52]} 27. Re1 {[%emt 0:00:22]} Re2 {[%emt 0:00:53]} 28. Rc1 {[%emt 0:02:03]} f5 {[%emt 0:01:48]} 29. b3 {[%emt 0:03:06]} d2 {[%emt 0:01:53]} 30. Bxd2 {[%emt 0:00:08]} Rxd2 {[%emt 0:00:07]} 31. Re1 {[%emt 0:00:14]} Qd5 {[%emt 0:01:16]} 32. bxa4 {[%emt 0:00:46]} Bf6 {[%emt 0:01:24]} 33. a3 {[%emt 0:01:18]} Kf7 {[%emt 0:03:26]} 34. Rc1 {[%emt 0:00:39]} e6 {[%emt 0:01:00]} 35. h4 {[%emt 0:01:07]} Be5 {[%emt 0:00:21]} 36. Re1 {[%emt 0:00:27]} Bg3 {[%emt 0:00:39]} 37. Rb1 {[%emt 0:00:44]} Rf2 {[%emt 0:00:37]} 38. Qg1 {[%emt 0:00:18]} Qe4 {[%emt 0:00:08]} 39. Rb4 {[%emt 0:00:18]} Qe2 {[%emt 0:01:01]} 40. Rxb7+ {[%emt 0:00:00]} Kg6 {[%emt 0:00:00]} 41. Rb1 {[%emt 0:01:23]} Qg4 {[%emt 0:04:37]} 42. Rb4 {[%emt 0:00:38]} f4 {[%emt 0:02:49]} 43. Qb1+ {[%emt 0:00:50]} Kh6 {[%emt 0:00:03]} 44. Rxf4 {[%emt 0:02:32]} Rxf4 {[%emt 0:00:30]} 45. Kg1 {[%emt 0:00:19]} Qxh4 {[%emt 0:00:26]} 46. Qc1 {[%emt 0:00:20]} Qh2# {[%emt 0:00:38]} 0-1

[Event "5th Thessaloniki SKG Open-B 2024"]
[Site "Thessaloniki"]
[Date "2024.08.06"]
[Round "1.5"]
[White "Zlotogorski, Itay"]
[Black "Seretis, Anastasios"]
[Result "1/2-1/2"]
[ECO "C00"]
[WhiteElo "1822"]
[BlackElo "1612"]
[Annotator "NA RC"]
[PlyCount "59"]
[EventDate "2024.08.05"]
[EventType "swiss"]
[EventCountry "GRE"]
[SourceTitle "playchess.com"]
[Source "ChessBase"]
[SourceQuality "1"]
[TimeControl "40/5400+30:1800+30"]

1. e4 {[%emt 0:00:14]} c5 {[%emt 0:00:05]} 2. d3 {[%emt 0:00:27]} e6 {[%emt 0:00:21]} 3. f4 {[%emt 0:00:15]} d5 {[%emt 0:00:18]} 4. e5 {[%emt 0:00:12]} Nc6 {[%emt 0:00:45]} 5. Nf3 {[%emt 0:00:13]} Nge7 {[%emt 0:00:55]} 6. g4 {[%emt 0:00:39]} b6 {[%emt 0:01:46]} 7. Bg2 {[%emt 0:00:13]} Bb7 {[%emt 0:00:27]} 8. O-O {[%emt 0:00:40]} Qc7 {[%emt 0:00:54]} 9. Be3 {[%emt 0:04:22]} Ng6 {[%emt 0:03:03]} 10. Na3 {[%emt 0:11:47]} a6 {[%emt 0:02:52]} 11. Qd2 {[%emt 0:01:00]} Be7 {[%emt 0:02:11]} 12. Bf2 {[%emt 0:01:19]} Qd8 {[%emt 0:06:19]} 13. Rae1 {[%emt 0:01:06]} Bh4 {[%emt 0:01:48]} 14. f5 {[%emt 0:01:28]} Bxf2+ {[%emt 0:00:55]} 15. Rxf2 {[%emt 0:00:42]} Nh4 {[%emt 0:01:09]} 16. fxe6 {[%emt 0:02:19]} Nxf3+ {[%emt 0:00:39]} 17. Rxf3 {[%emt 0:00:21]} fxe6 {[%emt 0:00:11]} 18. c4 {[%emt 0:02:31]} d4 {[%emt 0:01:26]} 19. Qf4 {[%emt 0:01:54]} Qe7 {[%emt 0:02:01]} 20. Ref1 {[%emt 0:01:25]} Nb4 {[%emt 0:06:06]} 21. Qf7+ {[%emt 0:01:21]} Qxf7 {[%emt 0:00:40]} 22. Rxf7 {[%emt 0:00:06]} Bxg2 {[%emt 0:00:04]} 23. Kxg2 {[%emt 0:00:04]} Nxd3 {[%emt 0:00:07]} 24. Rxg7 {[%emt 0:01:01]} Nxb2 {[%emt 0:00:22]} 25. Rff7 {[%emt 0:00:41]} d3 {[%emt 0:00:36]} 26. Re7+ {[%emt 0:03:36]} Kf8 {[%emt 0:00:55]} 27. Rgf7+ {[%emt 0:03:00]} Kg8 {[%emt 0:00:03]} 28. Rg7+ {[%emt 0:03:52]} Kf8 {[%emt 0:00:18]} 29. Rgf7+ {[%emt 0:00:32]} Kg8 {[%emt 0:00:07]} 30. Rg7+ {[%emt 0:00:02]} 1/2-1/2

[Event "5th Thessaloniki SKG Open-B 2024"]
[Site "Thessaloniki"]
[Date "2024.08.06"]
[Round "1.6"]
[White "Abdurahman, Ahmet Selim"]
[Black "Naci, Igli"]
[Result "0-1"]
[ECO "D02"]
[WhiteElo "1602"]
[BlackElo "1800"]
[Annotator "NA RC"]
[PlyCount "94"]
[EventDate "2024.08.05"]
[EventType "swiss"]
[EventCountry "GRE"]
[SourceTitle "playchess.com"]
[Source "ChessBase"]
[SourceQuality "1"]
[TimeControl "40/5400+30:1800+30"]

1. Nf3 {[%emt 0:00:02]} d5 {[%emt 0:00:00]} 2. d4 {[%emt 0:01:33]} Nf6 {[%emt 0:00:33]} 3. Bf4 {[%emt 0:00:50]} e6 {[%emt 0:00:58]} 4. e3 {[%emt 0:00:17]} Bd6 {[%emt 0:00:46]} 5. Bg3 {[%emt 0:00:41]} O-O {[%emt 0:00:13]} 6. Bd3 {[%emt 0:00:23]} Re8 {[%emt 0:00:21]} 7. O-O {[%emt 1:30:14]} c5 {[%emt 0:03:04]} 8. c4 {[%emt 0:00:00]} Nc6 {[%emt 0:06:12]} 9. Bxd6 {[%emt 0:00:00]} Qxd6 {[%emt 0:00:02]} 10. cxd5 {[%emt 0:00:00]} exd5 {[%emt 0:02:21]} 11. dxc5 {[%emt 0:00:00]} Qxc5 {[%emt 0:00:02]} 12. Nc3 {[%emt 0:00:00]} Bg4 {[%emt 0:01:58]} 13. h3 {[%emt 0:00:00]} Bh5 {[%emt 0:00:19]} 14. Rc1 {[%emt 0:00:00]} Qe7 {[%emt 0:06:20]} 15. Be2 {[%emt 0:00:00]} Rad8 {[%emt 0:01:06]} 16. Nd4 {[%emt 0:00:00]} Bg6 {[%emt 0:03:29]} 17. Bb5 {[%emt 0:00:00]} Qd6 {[%emt 0:06:28]} 18. Na4 {[%emt 0:00:00]} Rc8 {[%emt 0:05:34]} 19. Bxc6 {[%emt 0:00:00]} bxc6 {[%emt 0:00:09]} 20. Nc5 {[%emt 0:00:00]} Ne4 {[%emt 0:02:44]} 21. Ndb3 {[%emt 0:00:00]} Rb8 {[%emt 0:11:03]} 22. Qd4 {[%emt 0:00:00]} Rb5 {[%emt 0:12:32]} 23. a4 {[%emt 0:00:00]} Nxc5 {[%emt 0:01:58]} 24. Nxc5 {[%emt 0:00:00]} Rb6 {[%emt 0:00:24]} 25. b3 {[%emt 0:00:00]} Qe7 {[%emt 0:01:45]} 26. Rc3 {[%emt 0:00:00]} h6 {[%emt 0:04:02]} 27. Rfc1 {[%emt 0:00:00]} a5 {[%emt 0:01:59]} 28. Ne6 {[%emt 0:00:00]} fxe6 {[%emt 0:02:42]} 29. Qxb6 {[%emt 0:00:00]} Be4 {[%emt 0:02:06]} 30. Qc5 {[%emt 0:00:00]} Qg5 {[%emt 0:00:40]} 31. g3 {[%emt 0:00:00]} Qf5 {[%emt 0:01:04]} 32. Kf1 {[%emt 0:00:00]} Rf8 {[%emt 0:01:32]} 33. R3c2 {[%emt 0:13:00]} Qxh3+ {[%emt 0:08:43]} 34. Ke1 {[%emt 0:00:00]} Qh1+ {[%emt 0:02:47]} 35. Kd2 {[%emt 0:00:00]} Rxf2+ {[%emt 0:01:13]} 36. Kc3 {[%emt 0:00:00]} Rxc2+ {[%emt 0:03:59]} 37. Rxc2 {[%emt 0:00:00]} Qe1+ {[%emt 0:02:04]} 38. Kb2 {[%emt 0:00:00]} Bxc2 {[%emt 0:00:11]} 39. Kxc2 {[%emt 0:03:00]} Qxg3 {[%emt 0:00:00]} 40. Qxa5 {[%emt 0:00:00]} Qxe3 {[%emt 0:00:00]} 41. Qa8+ {[%emt 0:00:00]} Kh7 {[%emt 0:05:04]} 42. Qxc6 {[%emt 0:00:00]} Qe2+ {[%emt 0:02:31]} 43. Kb1 {[%emt 0:00:00]} d4 {[%emt 0:01:04]} 44. Qc2+ {[%emt 0:00:00]} d3 {[%emt 0:00:03]} 45. Qc1 {[%emt 0:00:00]} h5 {[%emt 0:01:17]} 46. Qc4 {[%emt 0:00:00]} Qe1+ {[%emt 0:01:07]} 47. Kb2 {[%emt 0:00:00]} d2 {[%emt 0:29:31]} 0-1

[Event "5th Thessaloniki SKG Open-B 2024"]
[Site "Thessaloniki"]
[Date "2024.08.06"]
[Round "1.7"]
[White "Hatzigrigoriou, Georgios"]
[Black "Soyer, Melin"]
[Result "1-0"]
[ECO "B22"]
[WhiteElo "1800"]
[BlackElo "1602"]
[Annotator "NA RC"]
[PlyCount "85"]
[EventDate "2024.08.05"]
[EventType "swiss"]
[EventCountry "GRE"]
[SourceTitle "playchess.com"]
[Source "ChessBase"]
[SourceQuality "1"]
[TimeControl "40/5400+30:1800+30"]

1. e4 {[%emt 0:00:03]} c5 {[%emt 0:00:06]} 2. Nf3 {[%emt 0:00:03]} e6 {[%emt 0:00:10]} 3. c3 {[%emt 0:00:05]} d5 {[%emt 0:00:11]} 4. exd5 {[%emt 0:00:05]} exd5 {[%emt 0:00:08]} 5. d4 {[%emt 0:00:06]} cxd4 {[%emt 0:00:23]} 6. Qxd4 {[%emt 0:00:32]} Nc6 {[%emt 0:01:36]} 7. Bb5 {[%emt 0:00:12]} a6 {[%emt 0:04:07]} 8. Ba4 {[%emt 0:01:38]} b5 {[%emt 0:02:59]} 9. Qe3+ {[%emt 0:00:06]} Be7 {[%emt 0:02:26]} 10. Bc2 {[%emt 0:00:24]} Nf6 {[%emt 0:00:42]} 11. O-O {[%emt 0:00:35]} O-O {[%emt 0:00:38]} 12. Rd1 {[%emt 0:00:18]} Re8 {[%emt 0:04:17]} 13. Qd3 {[%emt 0:00:30]} g6 {[%emt 0:07:58]} 14. Nd4 {[%emt 0:01:33]} Ne5 {[%emt 0:02:13]} 15. Qg3 {[%emt 0:01:31]} Bd6 {[%emt 0:02:15]} 16. Qh4 {[%emt 0:03:03]} Neg4 {[%emt 0:10:45]} 17. h3 {[%emt 0:02:34]} Qe7 {[%emt 0:02:10]} 18. Bd2 {[%emt 0:02:32]} Bf4 {[%emt 0:13:39]} 19. hxg4 {[%emt 0:04:04]} Bxg4 {[%emt 0:00:56]} 20. f3 {[%emt 0:02:15]} g5 {[%emt 0:05:16]} 21. Qf2 {[%emt 0:02:44]} Bxd2 {[%emt 0:03:22]} 22. Qxd2 {[%emt 0:00:56]} Qe5 {[%emt 0:10:23]} 23. fxg4 {[%emt 0:01:17]} Nxg4 {[%emt 0:00:06]} 24. Nf3 {[%emt 0:00:23]} Qe3+ {[%emt 0:00:38]} 25. Qxe3 {[%emt 0:00:26]} Nxe3 {[%emt 0:00:13]} 26. Rc1 {[%emt 0:00:07]} Nxc2 {[%emt 0:00:26]} 27. Rxc2 {[%emt 0:00:06]} g4 {[%emt 0:00:34]} 28. Nd4 {[%emt 0:01:57]} Re1+ {[%emt 0:00:26]} 29. Kf2 {[%emt 0:00:05]} Rae8 {[%emt 0:00:54]} 30. Re2 {[%emt 0:00:26]} R1xe2+ {[%emt 0:00:21]} 31. Nxe2 {[%emt 0:00:06]} h5 {[%emt 0:00:57]} 32. g3 {[%emt 0:00:01]} Kg7 {[%emt 0:00:59]} 33. Nf4 {[%emt 0:00:14]} Re5 {[%emt 0:00:10]} 34. Nd2 {[%emt 0:00:04]} Rf5 {[%emt 0:00:15]} 35. Nb3 {[%emt 0:00:35]} h4 {[%emt 0:00:15]} 36. Nd4 {[%emt 0:00:06]} Rf6 {[%emt 0:00:49]} 37. Re1 {[%emt 0:00:17]} h3 {[%emt 0:00:26]} 38. Re5 {[%emt 0:00:16]} Kf8 {[%emt 0:03:55]} 39. Rxd5 {[%emt 0:00:15]} Rh6 {[%emt 0:00:58]} 40. Nf5 {[%emt 0:00:00]} Re6 {[%emt 0:00:00]} 41. Nxe6+ {[%emt 0:00:31]} fxe6 {[%emt 0:01:05]} 42. Rd8+ {[%emt 0:00:06]} Kf7 {[%emt 0:00:09]} 43. Nh6+ {[%emt 0:00:16]} 1-0